bitfinex-derivatives/quotes_ETHF0:USTF0_20260306
["timestamp","ask_amount","ask_price","bid_price","bid_amount"]
[1772816159215,0.57593265,1972.0,1971.4,0.5587813]
[1772816159515,0.57593265,1972.0,1971.4,7.1927813]
[1772816159814,0.57593265,1972.0,1971.4,6.634]
[1772816160212,0.57593265,1972.0,1971.3,0.5587813]
[1772816160413,0.57593265,1971.8,1970.7,2.11505372]
[1772816160611,0.57593265,1971.8,1970.9,0.5587813]
[1772816161010,0.00489915,1972.2,1970.9,0.5587813]
[1772816161011,0.57593265,1971.6,1970.9,0.5587813]
[1772816161211,0.57593265,1971.6,1970.8,6.634]
[1772816161511,0.57593265,1971.6,1971.0,0.5587813]
[1772816161711,0.57593265,1971.6,1970.9,6.634]
[1772816162015,0.57593265,1971.6,1971.0,0.55383558]
[1772816162217,0.5703039,1972.0,1971.0,0.55383558]
[1772816162718,0.5703039,1971.6,1970.7,0.55383558]
[1772816162918,0.5703039,1971.6,1970.8,0.55383558]
[1772816163314,0.2536,1971.5,1970.7,6.635]
[1772816163515,0.5703039,1971.4,1970.7,6.635]
[1772816163916,0.5703039,1971.4,1970.5,7.18883558]
[1772816166023,0.5703039,1971.4,1970.5,0.55383558]
[1772816166219,0.2536,1971.5,1970.3,0.0037644]
[1772816166220,0.5703039,1971.2,1970.3,0.0037644]
[1772816166614,0.5703039,1971.2,1970.3,0.55759998]
[1772816167119,0.5703039,1971.0,1970.3,0.55759998]
[1772816167816,0.5703039,1971.0,1970.3,0.0037644]
[1772816168216,0.5703039,1971.0,1970.3,0.55759998]
[1772816168515,0.5703039,1971.0,1970.3,0.0037644]
[1772816168911,0.5703039,1970.8,1970.3,0.0037644]
[1772816169218,0.57491163,1970.8,1970.3,0.55759998]
[1772816169417,0.57491163,1970.8,1970.3,0.0037644]
[1772816170113,0.00460773,1970.8,1970.3,0.55759998]
[1772816170818,0.5703039,1971.0,1970.3,0.55759998]
[1772816171015,0.5703039,1971.0,1970.3,0.0037644]
[1772816171523,0.5703039,1970.8,1970.3,0.0037644]
[1772816171716,0.57656698,1970.8,1970.3,0.0037644]
[1772816171915,0.00626308,1970.8,1970.3,0.55759998]
[1772816172923,0.57656698,1970.8,1970.3,0.55759998]
[1772816173220,0.57656698,1970.8,1970.3,0.0037644]
[1772816174117,0.57656698,1970.8,1970.1,7.19083558]
[1772816174325,0.57656698,1970.8,1970.1,0.55383558]
[1772816175119,0.57656698,1970.8,1970.1,0.56003555]
[1772816176025,0.57656698,1970.8,1970.1,0.00619997]
[1772816176624,0.57656698,1970.8,1970.1,0.56003555]
[1772816177521,0.57656698,1970.8,1970.1,0.00619997]
[1772816177727,0.57656698,1970.8,1969.5,26.02861589]
[1772816177728,0.5703039,1970.4,1969.5,2.6437022]
[1772816178222,0.25378,1970.3,1969.5,2.6437022]
[1772816178527,0.5703039,1970.0,1969.3,0.55383558]
[1772816178722,0.5703039,1970.0,1969.3,0.00607772]
[1772816178924,0.5703039,1969.8,1968.9,0.55383558]
[1772816179123,0.5703039,1969.6,1968.9,0.55383558]
[1772816179424,0.5703039,1969.6,1968.7,0.55383558]
[1772816180125,0.5703039,1969.6,1968.7,0.55844254]
[1772816181035,0.5703039,1970.1,1968.7,0.55844254]
[1772816181332,0.5703039,1969.9,1968.7,0.55844254]
[1772816181627,0.25384,1969.8,1968.7,0.55844254]
[1772816181828,0.5703039,1969.7,1968.7,0.55844254]
[1772816183019,0.5703039,1969.5,1968.7,0.55844254]
[1772816183225,0.5703039,1969.5,1968.7,0.00460696]
[1772816184528,0.5703039,1969.3,1968.7,0.00460696]
[1772816184729,0.5703039,1969.1,1968.3,0.55383558]
[1772816184930,0.5703039,1969.1,1968.1,0.55383558]
[1772816185131,0.5703039,1969.1,1968.0,1.244]
[1772816185132,0.5703039,1968.9,1967.9,0.55383558]
[1772816185729,0.5703039,1968.9,1967.9,0.55852002]
[1772816186329,0.5703039,1968.7,1967.9,0.55852002]
[1772816186524,0.5703039,1968.7,1967.9,0.00468444]
[1772816187828,0.5703039,1968.7,1967.9,0.55852002]
[1772816189438,0.5703039,1968.5,1967.9,0.00468444]
[1772816189937,0.5703039,1968.5,1967.5,0.55383558]
[1772816190437,0.25402,1968.4,1967.5,0.55383558]
[1772816190635,0.8243239,1968.4,1967.5,0.55383558]
[1772816190837,0.5703039,1968.1,1967.5,0.5602364]
[1772816191237,0.8243539,1968.2,1967.5,0.5602364]
[1772816191636,6.641,1968.6,1967.5,0.00640082]
[1772816191637,0.57651888,1967.9,1967.5,0.00640082]
[1772816191832,0.57651888,1967.9,1967.3,0.55383558]
[1772816192031,0.57651888,1968.4,1967.3,0.55383558]
[1772816192831,0.58095639,1968.4,1967.3,0.5597488]
[1772816193233,0.57651888,1968.2,1967.3,0.5597488]
[1772816195336,0.57651888,1968.2,1967.4,0.60544652]
[1772816196437,0.57651888,1968.0,1967.3,1.24991322]
[1772816196642,0.57651888,1967.8,1967.3,1.85535974]
[1772816196939,0.57651888,1967.8,1967.3,0.00591322]
[1772816197741,0.57651888,1967.8,1967.3,0.61135974]
[1772816198243,0.57651888,1967.8,1967.3,0.00591322]
[1772816199238,0.57651888,1967.8,1967.3,0.61135974]
[1772816199443,0.57651888,1967.8,1967.3,0.00591322]
[1772816199937,0.57651888,1967.8,1967.3,0.61135974]
[1772816200337,0.57651888,1967.8,1967.3,0.00591322]
[1772816200943,0.57651888,1967.8,1967.3,0.61135974]
[1772816201939,0.57651888,1967.4,1966.9,0.60544652]
[1772816202144,0.57651888,1967.4,1966.7,0.60544652]
[1772816203043,0.57651888,1967.4,1966.7,0.609596]
[1772816205140,0.57651888,1967.2,1966.7,0.609596]
[1772816205742,0.57651888,1967.0,1966.4,0.60544652]
[1772816206346,0.83072888,1966.9,1966.4,0.60544652]
[1772816206643,0.57651888,1966.8,1966.4,0.60544652]
[1772816206841,0.58017659,1966.8,1966.4,0.61007064]
[1772816207343,0.58017659,1966.8,1966.3,0.33065037]
[1772816208044,0.58017659,1966.8,1966.3,0.93609689]
[1772816208239,0.58017659,1966.8,1966.3,0.33572917]
[1772816208642,0.57651888,1966.4,1965.9,0.60544652]
[1772816209147,0.57651888,1966.7,1965.9,0.60544652]
[1772816209640,0.00365771,1966.8,1965.9,0.61114391]
[1772816210242,0.83067888,1967.3,1966.1,0.60544652]
[1772816210443,0.57651888,1967.5,1966.3,0.60544652]
[1772816211145,0.58112414,1967.5,1966.3,0.60544652]
[1772816211344,0.58112414,1967.5,1966.5,0.60544652]
[1772816212144,0.00460526,1967.5,1966.5,0.60544652]
[1772816212346,0.57651888,1968.1,1966.7,0.60544652]
[1772816213037,0.25404,1968.3,1966.7,0.60544652]
[1772816213239,0.26020134,1968.3,1966.8,0.60544652]
[1772816213447,0.83672022,1968.3,1966.8,0.60544652]
[1772816213751,0.57651888,1968.2,1966.8,0.60544652]
[1772816213944,0.57651888,1968.2,1966.9,40.8]
[1772816214138,0.57651888,1968.2,1967.1,0.60544652]
[1772816214344,0.57651888,1968.6,1967.4,0.60544652]
[1772816214748,0.57651888,1969.0,1967.6,0.60544652]
[1772816215041,0.57651888,1969.0,1967.5,0.25414]
[1772816215042,0.57651888,1969.0,1967.8,0.60544652]
[1772816215447,0.58018574,1969.0,1967.8,0.6113651]
[1772816219145,0.57748808,1968.6,1967.8,0.6113651]
[1772816219348,0.57748808,1968.9,1967.8,0.6113651]
[1772816219551,0.57748808,1968.9,1968.0,0.5898522]
[1772816220243,0.57748808,1968.9,1967.9,41.3898522]
[1772816220447,0.254,1968.6,1967.9,0.5898522]
[1772816220642,0.57748808,1968.5,1967.8,0.00591858]
[1772816221451,0.57748808,1968.5,1967.8,0.59577078]
[1772816221651,0.57748808,1968.5,1967.8,0.00591858]
[1772816222050,0.57748808,1968.5,1967.8,0.5987293]
[1772816222354,4.22370763,1969.0,1967.8,0.5987293]
[1772816222355,0.58339979,1968.9,1967.8,0.5987293]
[1772816224553,0.58339979,1968.9,1968.0,0.59281072]
[1772816225458,0.58339979,1969.6,1968.2,0.59281072]
[1772816225750,0.58339979,1969.6,1968.4,0.59281072]
[1772816226552,0.58886173,1969.6,1968.6,0.59281072]
[1772816226754,0.58339979,1969.4,1968.6,0.59281072]
[1772816226954,0.58339979,1969.4,1968.5,40.8]
[1772816227148,0.58339979,1969.4,1968.5,41.39281072]
[1772816227548,0.58339979,1969.2,1968.6,0.59281072]
[1772816228155,0.58339979,1969.5,1968.6,0.59281072]
[1772816228553,0.00546194,1969.6,1968.8,0.59281072]
[1772816228758,0.00546194,1969.6,1969.0,0.59281072]
[1772816229158,0.58886173,1969.6,1969.0,0.59281072]
[1772816229559,0.00546194,1969.6,1969.0,0.59281072]
[1772816230661,0.58886173,1969.6,1969.0,0.59281072]
[1772816231058,0.25379,1970.3,1969.0,0.59281072]
[1772816231262,0.58339979,1970.2,1969.0,0.59281072]
[1772816232369,0.58888145,1970.2,1969.0,0.59281072]
[1772816232568,0.58888145,1970.2,1969.2,0.59281072]
[1772816232771,0.58339979,1970.4,1969.5,0.59281072]
[1772816232968,0.58339979,1970.4,1969.7,0.59281072]
[1772816233469,0.25371,1970.8,1969.9,0.59281072]
[1772816233663,0.58339979,1970.7,1969.9,0.59281072]
[1772816233868,0.58339979,1970.7,1969.8,40.8]
[1772816234072,0.58339979,1970.7,1969.9,0.59281072]
[1772816235972,0.00487858,1970.8,1969.9,0.59281072]
[1772816236374,0.58827837,1970.8,1969.9,0.59281072]
[1772816236768,0.00487858,1970.8,1969.9,0.59281072]
[1772816237166,0.58339979,1971.1,1970.2,0.59281072]
[1772816237573,0.58339979,1971.6,1970.5,0.59281072]
[1772816237866,0.58339979,1972.1,1970.7,0.59281072]
[1772816238074,0.58339979,1972.1,1970.8,0.59281072]
[1772816238268,0.58756552,1972.1,1971.2,0.59281072]
[1772816238474,13.12625,1972.9,1971.4,3.375452]
[1772816238475,0.58339979,1972.5,1971.4,3.375452]
[1772816238669,0.58339979,1972.5,1971.5,0.59281072]
[1772816238871,0.58339979,1972.3,1971.6,6.638]
[1772816239069,0.58339979,1972.1,1971.3,0.59281072]
[1772816239275,0.58339979,1972.1,1971.1,0.59281072]
[1772816239474,0.58801931,1972.1,1971.1,0.59281072]
[1772816239676,0.58801931,1972.1,1971.3,0.59281072]
[1772816240479,0.58339979,1972.0,1970.8,0.00513978]
[1772816240677,7.07459979,1972.0,1970.8,0.00513978]
[1772816240879,0.58339979,1971.7,1970.8,0.00513978]
[1772816242377,0.58339979,1971.7,1970.8,0.5979505]
[1772816242578,0.58339979,1971.7,1970.8,0.00513978]
[1772816242779,0.58339979,1971.5,1970.4,0.59281072]
[1772816243182,0.58339979,1971.3,1970.4,0.59281072]
[1772816243371,0.58339979,1971.3,1970.0,40.8]
[1772816243372,0.58339979,1971.3,1970.2,0.59281072]
[1772816243879,0.58339979,1971.2,1970.2,0.59656232]
[1772816245876,0.58339979,1971.5,1970.2,0.59656232]
[1772816246383,0.58339979,1971.5,1970.3,0.59281072]
[1772816246577,0.58339979,1971.5,1970.5,0.59281072]
[1772816247077,0.58339979,1971.9,1970.5,0.59281072]
[1772816247477,0.58339979,1971.7,1970.5,0.59281072]
[1772816249887,0.58339979,1971.7,1970.6,0.59281072]
[1772816251787,0.58339979,1971.7,1970.8,0.5854492]
[1772816256690,0.58339979,1971.7,1970.6,0.5854492]
[1772816258487,0.56395697,1971.6,1970.6,0.5854492]
[1772816258690,0.56395697,1971.6,1970.8,0.5854492]
[1772816260690,0.56395697,1971.8,1970.8,0.5854492]
[1772816261393,0.56395697,1972.0,1970.8,0.5854492]
[1772816262092,0.56395697,1972.0,1971.0,0.5854492]
[1772816262391,0.56857649,1972.1,1971.2,0.5854492]
[1772816263187,0.00461952,1972.1,1971.3,0.5854492]
[1772816264294,0.56857649,1972.1,1971.3,0.5854492]
[1772816264489,0.56857649,1972.1,1971.2,6.64]
[1772816264695,0.56857649,1972.1,1971.3,0.5854492]
[1772816264888,6.32035614,1972.0,1971.3,0.5854492]
[1772816265091,0.00461952,1972.1,1971.3,0.5854492]
[1772816266286,0.56857649,1972.1,1971.3,0.5854492]
[1772816266888,0.00461952,1972.1,1971.5,0.5854492]
[1772816267093,0.56395697,1972.5,1971.5,0.5854492]
[1772816267293,6.879231,1972.4,1971.5,0.5854492]
[1772816267498,0.56395697,1972.5,1971.5,0.5854492]
[1772816267690,6.879231,1972.4,1971.5,0.5854492]
[1772816267892,0.56395697,1972.5,1971.5,0.5854492]
[1772816268088,0.56395697,1972.3,1971.7,0.5854492]
[1772816268399,0.25841595,1972.5,1971.7,0.5854492]
[1772816268400,0.56395697,1973.1,1972.0,0.5854492]
[1772816268592,0.56395697,1973.1,1972.2,0.5854492]
[1772816268895,0.56395697,1973.1,1972.4,0.5854492]
[1772816269693,0.57047484,1973.1,1972.4,0.5854492]
[1772816272599,0.00651787,1973.1,1972.4,0.5854492]
[1772816273399,0.00651787,1973.1,1972.3,48.0244492]
[1772816273400,0.57047484,1973.1,1972.3,48.0244492]
[1772816273598,0.57047484,1973.1,1972.4,0.5854492]
[1772816274102,0.57047484,1973.1,1972.3,40.8]
[1772816274298,0.57047484,1973.1,1972.3,41.3854492]
[1772816275300,0.82390484,1973.1,1972.2,6.639]
[1772816275500,0.58794596,1972.8,1972.2,6.639]
[1772816275697,0.58794596,1972.8,1971.9,7.21361628]
[1772816276297,0.58794596,1972.6,1971.9,0.57461628]
[1772816276493,0.58794596,1972.4,1971.7,0.00527694]
[1772816276902,0.58794596,1972.4,1971.7,0.57989322]
[1772816277295,0.58794596,1972.6,1971.7,0.57989322]
[1772816277896,0.58794596,1972.5,1971.7,0.57989322]
[1772816278098,0.58794596,1972.3,1971.7,0.57989322]
[1772816278302,0.58794596,1972.3,1971.7,0.00527694]
[1772816278701,10.87270732,1972.7,1971.3,6.64]
[1772816278702,0.58794596,1972.1,1971.3,6.64]
[1772816279001,0.58794596,1971.9,1971.2,41.37461628]
[1772816279198,0.58794596,1972.3,1971.3,0.57461628]
[1772816279697,0.58794596,1972.3,1971.3,0.58113266]
[1772816280703,0.25353,1972.2,1971.3,0.58113266]
[1772816281002,0.58794596,1972.1,1971.3,0.58113266]
[1772816281502,0.58794596,1971.9,1971.3,0.00651638]
[1772816281894,0.58794596,1971.9,1971.3,0.00270896]
[1772816282302,0.58794596,1971.9,1971.3,0.55220654]
[1772816283007,0.58817628,1972.1,1971.3,0.55220654]
[1772816284002,0.58817628,1972.3,1971.5,0.54949758]
[1772816284406,0.58817628,1972.5,1971.5,0.54949758]
[1772816284705,0.58817628,1972.3,1971.5,7.19049758]
[1772816284908,0.58817628,1972.3,1971.6,0.54949758]
[1772816285911,0.58817628,1972.1,1971.1,0.54949758]
[1772816286310,0.58817628,1972.3,1971.3,0.54949758]
[1772816286502,0.58817628,1972.2,1971.3,0.54949758]
[1772816286699,0.58817628,1972.2,1971.3,0.55309208]
[1772816287106,0.58817628,1972.4,1971.3,0.55309208]
[1772816287507,0.58817628,1972.2,1971.5,0.54949758]
[1772816287902,0.58817628,1972.2,1971.4,6.641]
[1772816288506,0.58817628,1972.2,1971.3,0.55309208]
[1772816288507,6.28269839,1972.1,1971.3,0.0035945]
[1772816288707,6.87087467,1972.0,1971.3,0.0035945]
[1772816288903,0.58817628,1971.8,1971.1,0.54949758]
[1772816289108,0.58817628,1971.4,1970.5,0.54949758]
[1772816289313,0.58817628,1971.2,1969.9,0.54949758]
[1772816289610,0.58817628,1971.2,1970.1,0.54949758]
[1772816290116,0.59458167,1971.2,1970.3,0.54949758]
[1772816290416,0.00640539,1971.2,1970.3,0.54949758]
[1772816291401,6.642,1971.8,1970.4,0.54949758]
[1772816291402,7.23017628,1971.8,1970.4,0.54949758]
[1772816291814,0.58817628,1971.8,1970.6,0.54949758]
[1772816292012,0.58817628,1971.8,1970.8,0.54949758]
[1772816292410,0.5933038,1971.8,1970.8,0.54949758]
[1772816293414,0.58817628,1971.7,1970.8,0.54949758]
[1772816294116,0.00512752,1971.8,1970.8,0.54949758]
[1772816294613,0.00512752,1971.8,1970.8,0.80320758]
[1772816294811,0.00512752,1971.8,1971.1,0.54949758]
[1772816295114,0.00512752,1971.8,1971.3,0.54949758]
[1772816295718,0.58817628,1972.4,1971.3,0.54949758]
[1772816296418,0.58817628,1972.2,1971.3,0.54949758]
[1772816296918,0.59248888,1972.2,1971.3,0.54949758]
[1772816298614,0.0043126,1972.2,1971.3,0.54949758]
[1772816298807,0.59248888,1972.2,1971.3,0.54949758]
[1772816300621,0.0043126,1972.2,1971.5,0.54949758]
[1772816300820,0.0043126,1972.2,1971.5,0.55360554]
[1772816302019,0.59248888,1972.2,1971.7,0.54949758]
[1772816302419,0.0043126,1972.2,1971.7,0.54949758]
[1772816302921,0.59248888,1972.2,1971.7,0.54949758]
[1772816303120,0.59248888,1972.2,1971.6,6.642]
[1772816304018,0.59248888,1972.2,1971.6,7.19149758]
[1772816304224,0.0043126,1972.2,1971.7,0.54949758]
[1772816304414,0.58817628,1972.6,1971.7,0.54949758]
[1772816305321,0.58817628,1972.4,1971.7,0.54949758]
[1772816306826,0.59404949,1972.6,1971.7,0.54949758]
[1772816307022,0.00587321,1972.6,1971.7,0.54949758]
[1772816308328,0.00587321,1972.6,1971.9,0.54949758]
[1772816308529,3.24525159,1973.0,1972.1,0.54949758]
[1772816308920,0.58817628,1973.0,1972.1,0.54949758]
[1772816309120,0.58817628,1973.2,1972.1,0.54949758]
[1772816309525,0.59216408,1973.2,1972.1,0.54949758]
[1772816310626,0.59216408,1973.2,1972.3,0.54949758]
[1772816311932,0.0039878,1973.2,1972.3,0.54949758]
[1772816312335,0.59679897,1973.6,1972.5,0.59109788]
[1772816312527,0.59679897,1973.6,1972.7,0.59109788]
[1772816313233,0.60160001,1973.6,1972.7,0.59109788]
[1772816316037,0.00480104,1973.6,1972.7,0.59109788]
[1772816316935,0.00480104,1973.6,1972.7,0.84455788]
[1772816317138,0.00480104,1973.6,1972.8,0.59109788]
[1772816317729,0.60160001,1973.6,1972.8,0.59109788]
[1772816317931,0.60160001,1973.6,1972.9,7.23109788]
[1772816318133,0.60160001,1973.6,1973.0,0.59109788]
[1772816320240,0.60160001,1973.6,1972.9,0.00498952]
[1772816320940,0.60160001,1973.6,1972.6,7.23109788]
[1772816321238,0.59679897,1973.2,1972.4,0.59109788]
[1772816321635,0.59679897,1973.2,1972.5,0.59109788]
[1772816322036,0.59679897,1973.2,1972.5,0.59719036]
[1772816323041,0.55838426,1973.5,1972.5,0.59719036]
[1772816326134,0.00480104,1973.6,1972.7,0.59109788]
[1772816326335,0.00480104,1973.6,1972.5,0.00609248]
[1772816326336,0.00480104,1973.6,1972.9,0.59109788]
[1772816328940,0.56178254,1973.6,1973.0,6.641]
[1772816329236,0.56178254,1973.6,1973.0,7.23209788]
[1772816329438,0.56178254,1973.6,1973.0,0.59109788]
[1772816329742,0.56178254,1973.6,1973.0,7.23209788]
[1772816330949,0.00480104,1973.6,1973.1,0.59109788]
[1772816331143,0.5648294,1973.6,1973.1,0.59109788]
[1772816332047,0.5648294,1973.6,1972.9,0.59109788]
[1772816332347,0.5648294,1973.6,1972.8,0.59109788]
[1772816333436,6.29852761,1973.5,1972.6,0.59109788]
[1772816333638,0.52507288,1973.4,1972.7,0.59109788]
[1772816334044,0.52987392,1973.6,1972.7,0.59109788]
[1772816334238,6.8284338,1973.5,1972.7,0.59109788]
[1772816334445,0.52507288,1973.5,1972.7,0.59109788]
[1772816335344,0.52040325,1973.3,1972.7,0.59109788]
[1772816335851,0.52520429,1973.6,1972.7,0.59109788]
[1772816336046,0.52040093,1973.4,1972.7,0.59109788]
[1772816336553,0.52040093,1973.4,1972.6,6.64]
[1772816336845,0.52040093,1973.2,1972.6,6.64]
[1772816337248,0.52040093,1973.2,1972.6,7.18912151]
[1772816337654,0.52040093,1973.2,1972.5,0.00609248]
[1772816337853,0.52075861,1973.0,1972.5,0.00609248]
[1772816338048,0.52075861,1973.0,1972.5,0.00177996]
[1772816338250,6.83836157,1972.9,1972.3,0.54912151]
[1772816338454,0.51897865,1972.9,1972.3,0.54912151]
[1772816339250,0.51897865,1972.9,1972.3,0.55306076]
[1772816339451,0.51897865,1972.9,1972.3,0.00393925]
[1772816339650,0.51082302,1972.7,1972.3,0.00393925]
[1772816340454,0.51082302,1972.7,1972.3,0.55306076]
[1772816341159,0.43201806,1973.0,1972.3,0.55306076]
[1772816341457,4.22267179,1973.1,1972.3,0.55306076]
[1772816341458,0.43201806,1972.8,1972.3,0.55306076]
[1772816341657,0.43201806,1972.8,1972.1,0.55600709]
[1772816342153,0.43239015,1972.6,1972.1,0.55600709]
[1772816342654,0.43239015,1972.6,1972.1,0.56127375]
[1772816345857,0.43411887,1972.8,1972.1,0.56127375]
[1772816346056,7.07511887,1972.9,1972.1,0.56127375]
[1772816346256,0.43411887,1972.8,1972.1,0.56127375]
[1772816348255,0.43411887,1972.8,1972.1,0.00526666]
[1772816348656,0.43304054,1972.6,1971.8,0.55600709]
[1772816349154,0.42882955,1972.4,1971.8,0.55600709]
[1772816349753,0.42882955,1972.4,1971.8,0.56043783]
[1772816350257,0.42882955,1972.4,1971.8,0.00443074]
[1772816351957,0.42811353,1972.2,1971.4,40.8]
[1772816352152,0.42811353,1972.0,1971.3,0.55600709]
[1772816352860,0.42811353,1972.0,1971.2,0.55600709]
[1772816353062,0.43209475,1972.0,1971.2,0.56217911]
[1772816357066,0.00398122,1972.0,1971.2,0.56217911]
[1772816357264,0.42637072,1972.0,1971.2,0.56217911]
[1772816358863,0.42637072,1972.0,1971.2,0.00617202]
[1772816359366,0.42637072,1972.0,1971.2,0.56217911]
[1772816360168,0.00398122,1972.0,1971.2,0.56217911]
[1772816361365,0.44163224,1972.0,1971.2,0.56217911]
[1772816362469,0.00398122,1972.0,1971.2,0.56217911]
[1772816362663,0.00398122,1972.0,1971.4,0.55600709]
[1772816362870,6.643,1972.3,1971.4,0.55600709]
[1772816363564,0.43765102,1972.4,1971.4,0.55600709]
[1772816363765,0.44399267,1972.8,1971.6,0.55600709]
[1772816364074,0.449879,1972.8,1971.8,0.55600709]
[1772816365874,0.25347,1972.7,1971.8,0.55600709]
[1772816366075,0.45296998,1972.6,1971.8,0.55600709]
[1772816370475,0.45296998,1972.6,1971.6,0.55600709]
[1772816371176,0.45498615,1972.4,1971.6,0.55600709]
[1772816371380,0.45498615,1972.3,1971.6,0.55600709]
[1772816373275,0.45467464,1972.1,1971.3,0.57047618]
[1772816374172,11.31934643,1972.4,1971.3,0.57047618]
[1772816374481,0.45467464,1972.2,1971.3,0.57047618]
[1772816374681,0.45467464,1972.0,1971.3,0.57047618]
[1772816375276,0.45501285,1971.8,1971.2,0.00617202]
[1772816375476,0.45501285,1971.6,1971.2,0.00617202]
[1772816375677,0.45501285,1971.6,1970.7,0.57047618]
[1772816375979,0.45501285,1971.4,1970.7,0.57047618]
[1772816376180,0.45501285,1971.4,1970.8,0.57047618]
[1772816376781,0.45878929,1971.4,1970.8,0.57434406]
[1772816377673,0.00377644,1971.4,1970.8,0.57434406]
[1772816379992,6.643,1971.8,1970.8,0.57434406]
[1772816380190,6.643,1971.8,1971.0,0.57047618]
[1772816381087,6.64936663,1971.8,1971.0,0.57047618]
[1772816381894,0.45921793,1971.7,1971.0,0.57047618]
[1772816382694,6.64936663,1971.8,1971.0,0.57047618]
[1772816382888,7.10858456,1971.8,1971.0,0.57047618]
[1772816383392,6.64936663,1971.8,1971.0,0.57047618]
[1772816384600,7.10908905,1971.8,1971.0,0.57047618]
[1772816385501,0.46040564,1971.7,1971.0,0.57047618]
[1772816386700,6.64936663,1971.8,1971.0,0.57047618]
[1772816387002,7.10977227,1971.8,1971.0,0.57047618]
[1772816387905,0.46009842,1971.7,1971.0,0.57047618]
[1772816390202,0.46118005,1971.6,1970.8,0.57434406]
[1772816391098,7.10588282,1971.8,1970.8,0.57434406]
[1772816391698,7.10588282,1971.8,1971.0,0.57047618]
[1772816392303,7.10588282,1971.8,1971.1,0.57047618]
[1772816393007,0.00636663,1971.8,1971.1,0.57047618]
[1772816394202,0.46027554,1971.8,1971.1,0.57047618]
[1772816395305,0.4551184,1971.7,1971.1,0.57047618]
[1772816395706,0.4551184,1971.7,1970.9,0.59030591]
[1772816400210,0.45297294,1971.5,1970.9,0.59030591]
[1772816401030,0.45357333,1971.6,1970.9,0.59030591]
[1772816401206,0.45357333,1971.4,1970.9,0.59030591]
[1772816401408,0.45357333,1971.4,1970.8,0.00386788]
[1772816401611,0.45342368,1971.2,1970.8,0.57586223]
[1772816401806,0.45342368,1971.3,1970.8,0.57586223]
[1772816402611,6.643,1971.4,1970.8,0.57586223]
[1772816402816,7.09645251,1971.7,1970.8,0.57586223]
[1772816403113,4.22903842,1971.8,1970.8,0.57586223]
[1772816403114,0.45045202,1971.8,1970.8,0.57586223]
[1772816403311,0.44408539,1971.5,1970.8,0.57586223]
[1772816403516,0.44408539,1971.3,1970.8,0.57586223]
[1772816403916,0.44408539,1971.4,1970.8,0.57586223]
[1772816404716,6.643,1971.5,1970.8,0.57586223]
[1772816404717,0.44408539,1971.2,1970.8,0.00386788]
[1772816405414,0.44476411,1971.0,1970.0,0.57199435]
[1772816405620,0.44476411,1970.8,1970.0,0.57199435]
[1772816405919,0.44476411,1970.8,1970.2,0.57199435]
[1772816406417,0.44476411,1970.8,1970.2,0.57564701]
[1772816406911,7.08776411,1971.1,1970.2,0.57564701]
[1772816407114,6.643,1971.1,1970.3,0.57199435]
[1772816407712,7.08753176,1971.4,1970.3,0.57199435]
[1772816408019,0.44453176,1971.5,1970.4,0.57199435]
[1772816408412,0.44453176,1971.1,1970.2,0.57564701]
[1772816408617,0.44453176,1970.9,1970.2,0.00365266]
[1772816408810,0.44453176,1970.9,1970.2,0.57564701]
[1772816409320,0.44606082,1970.7,1970.2,0.57564701]
[1772816410621,0.44606082,1970.7,1970.2,0.00365266]
[1772816410821,0.44606082,1970.7,1970.2,0.57564701]
[1772816412121,0.44606082,1970.7,1970.2,0.00365266]
[1772816412524,0.44768144,1970.5,1969.8,0.57199435]
[1772816412720,7.09168144,1970.6,1969.8,0.57199435]
[1772816413525,7.09168144,1970.6,1969.8,0.57755162]
[1772816414422,0.46486259,1970.5,1969.8,0.57755162]
[1772816415128,0.46276071,1970.7,1969.8,0.57755162]
[1772816416124,7.10676071,1970.9,1969.8,0.57755162]
[1772816416324,7.10676071,1970.9,1969.8,0.83138162]
[1772816416523,7.10676071,1970.9,1969.9,0.57199435]
[1772816416724,0.46276071,1971.1,1970.1,0.57199435]
[1772816417030,7.10676071,1971.3,1970.2,0.57199435]
[1772816417526,0.46265184,1971.2,1970.2,0.57199435]
[1772816418230,0.2537,1970.9,1969.9,0.57199435]
[1772816418531,0.46265184,1970.8,1970.1,0.57199435]
[1772816421528,0.46829958,1971.0,1970.1,0.57199435]
[1772816421831,0.46607298,1971.2,1970.1,0.57199435]
[1772816422031,0.46607298,1971.0,1970.1,0.57199435]
[1772816422228,0.46607298,1970.8,1970.1,0.57199435]
[1772816422431,6.644,1971.1,1970.1,0.57199435]
[1772816423831,0.46869064,1971.4,1970.3,0.57199435]
[1772816424035,0.46869064,1971.4,1970.4,0.57199435]
[1772816424334,0.46869064,1971.4,1970.6,0.57199435]
[1772816424526,6.65036663,1971.8,1970.7,0.57199435]
[1772816424736,0.00636663,1971.8,1971.1,0.57199435]
[1772816425030,0.00636663,1971.8,1971.2,0.57199435]
[1772816425329,0.46963119,1972.1,1971.4,0.57199435]
[1772816426027,0.46963119,1972.3,1971.4,0.57199435]
[1772816426332,0.47494333,1972.3,1971.4,0.57581047]
[1772816426733,0.00531214,1972.3,1971.5,0.57199435]
[1772816427132,0.00531214,1972.3,1971.6,6.643]
[1772816427436,0.00531214,1972.3,1971.7,0.57199435]
[1772816428030,0.47347111,1972.3,1971.4,0.57581047]
[1772816430131,0.00531214,1972.3,1971.4,0.57581047]
[1772816430837,0.48584356,1972.3,1971.5,0.57199435]
[1772816431842,0.00531214,1972.3,1971.5,0.57199435]
[1772816433044,0.48105788,1972.7,1971.5,0.57199435]
[1772816433638,0.48753619,1973.0,1971.7,0.58560681]
[1772816433940,0.49300979,1973.0,1971.7,0.58560681]
[1772816436348,0.49300979,1973.0,1971.9,0.58560681]
[1772816436538,0.0054736,1973.0,1972.1,0.58560681]
[1772816436739,0.48688176,1973.4,1972.3,0.58560681]
[1772816437243,0.48688176,1973.4,1972.5,0.58560681]
[1772816437447,0.48688176,1973.4,1972.6,0.58560681]
[1772816437744,0.4932468,1973.4,1972.6,0.58560681]
[1772816438342,0.4932468,1973.4,1972.4,40.8]
[1772816438539,0.48445144,1973.2,1972.4,40.8]
[1772816438744,0.24140686,1973.0,1972.1,0.58560681]
[1772816441143,0.24140686,1973.0,1971.7,6.641]
[1772816441343,0.24140686,1973.0,1971.8,0.58560681]
[1772816441647,0.24140686,1973.0,1971.9,0.58560681]
[1772816442145,0.26508909,1972.6,1971.9,0.58560681]
[1772816442345,0.26508909,1972.6,1971.7,0.58560681]
[1772816444640,0.24938648,1972.4,1971.7,0.58560681]
[1772816445346,0.24390959,1972.6,1971.7,0.58560681]
[1772816446348,0.24390959,1972.5,1971.7,0.58560681]
[1772816447942,0.24241043,1972.1,1971.4,0.00381612]
[1772816448247,0.24241043,1972.1,1971.4,0.58942293]
[1772816448855,0.24241043,1972.6,1971.4,0.58942293]
[1772816449152,0.24241043,1972.4,1971.4,0.58942293]
[1772816449651,0.23695694,1972.6,1971.4,0.58942293]
[1772816453352,0.24248593,1972.4,1971.4,0.58942293]
[1772816454555,0.24248593,1972.2,1971.4,0.58942293]
[1772816456852,0.24061945,1972.0,1971.4,0.00381612]